Cogmind - Beta 10.1 @@@ ROGUE MODE // 2020.09.25 @ 23:48:07 Player: Tmvn Result: Destroyed by S-27 Virus with Autogun Performance ------------- Evolutions (5) 2500 Regions Visited (9) 1800 Robots Destroyed (14) 70 Value Destroyed (344) 344 Prototype IDs (3) 60 Alien Tech Used (0) 0 Bonus (0) 0 TOTAL SCORE: 4774 Bonus ------- None Cogmind --------- Core Integrity 0/1000 Matter 232/300 Energy 98/100 System Corruption 2% Temperature Cool (0) Movement Core (50) Location -5/Factory Parts ------- > --- POWER (2) -------- (None) > --- PROPULSION (6) --- (None) > --- UTILITY (7) ------ (None) > --- WEAPON (2) ------- (None) > --- INVENTORY (4) ---- Fission Core Triangulator Advanced ECM Suite Plasma Cutter Peak State ------------ > --- POWER ------------ Fission Core Light Fission Core > --- PROPULSION ------- Flight Unit Flight Unit Xenon Bombardment Thruster Nuclear Pulse Thruster Nuclear Pulse Thruster > --- UTILITY ---------- Small Storage Unit Triangulator Advanced Sensor Array Improved Transmission Jammer Improved Hacking Suite Improved Hacking Suite > --- WEAPON ----------- (None) > --- INVENTORY -------- Improved Ion Engine Kinecellerator Advanced ECM Suite Plasma Cannon [Rating: 51] Favorites ----------- Power Improved Ion Engine Engine Improved Ion Engine Power Core Light Fission Core Propulsion Aluminum Leg Leg Aluminum Leg Wheel Armored Wheel Hover Unit Aerolev Unit Flight Unit Flight Unit Utility Small Storage Unit Device Advanced Sensor Array Storage Small Storage Unit Processor Improved Targeting Computer Hackware Improved Hacking Suite Protection Hardened Light Armor Plating Weapon Assault Rifle Energy Gun Beam Rifle Energy Cannon Plasma Cannon Ballistic Gun Assault Rifle Ballistic Cannon Flak Cannon Special Weapon Plasma Cutter Build | -11 -10 -9 -9 -8 -7 -6 -6 -6 -5 ------- Run | Scr Mat Mat Sto Mat Fac Fac Low Low Fac Slots Evolved 10 | . . 2 . 2 2 2 . . 2 Power 1 | . . . . . 1 . . . . Propulsion 4 | . . 2 . . 1 . . . 1 Utility 5 | . . . . 2 . 2 . . 1 Weapon . | . . . . . . . . . . Parts Attached 76 | . 3 6 10 19 7 17 2 . 12 Power 16 | . 1 2 1 4 2 5 . . 1 Engine 10 | . 1 2 1 3 2 1 . . . Core 6 | . . . . 1 . 4 . . 1 Reactor . | . . . . . . . . . . Propulsion 32 | . 1 1 6 9 . 5 1 . 9 Treads . | . . . . . . . . . . Leg 3 | . 1 1 . . . . . . 1 Wheel 7 | . . . . . . . . . 7 Hover 5 | . . . . 5 . . . . . Flight 17 | . . . 6 4 . 5 1 . 1 Utility 18 | . 1 1 . 4 3 7 1 . 1 Device 13 | . 1 1 . 2 2 5 1 . 1 Storage 1 | . . . . 1 . . . . . Processor 1 | . . . . 1 . . . . . Hackware 2 | . . . . . . 2 . . . Protection 1 | . . . . . 1 . . . . Artifact . | . . . . . . . . . . Weapon 10 | . . 2 3 2 2 . . . 1 Energy Gun 3 | . . 1 2 . . . . . . Energy Cannon 2 | . . . . 1 1 . . . . Ballistic Gun 2 | . . 1 1 . . . . . . Ballistic Cannon 2 | . . . . 1 1 . . . . Launcher . | . . . . . . . . . . Special Weapon 1 | . . . . . . . . . 1 Impact Weapon . | . . . . . . . . . . Slashing Weapon . | . . . . . . . . . . Piercing Weapon . | . . . . . . . . . . Special Melee Weapon . | . . . . . . . . . . Unidentified Prototypes 3 | . . . . 3 . . . . . Parts Lost 30 | . . . 12 2 . 1 12 . 3 Power 4 | . . . 2 . . . 2 . . Propulsion 13 | . . . 4 1 . 1 4 . 3 Utility 8 | . . . 1 1 . . 6 . . Weapon 5 | . . . 5 . . . . . . Highest Loss Streak 13 | . . . 12 13 . 1 13 . 2 Average Slot Usage (%) 59 | . 85 88 67 65 77 74 21 . 6 Engine 5 | . 14 11 10 5 7 1 1 . . Core 3 | . . . . 3 7 10 1 . . Leg 8 | . 28 33 14 . . . . . . Hover 2 | . . . . 4 30 1 . . . Flight 11 | . . . 11 27 . 31 3 . 1 Device 7 | . . 11 7 5 15 13 4 . . Storage 7 | . 14 11 11 9 7 6 4 . . Hackware 1 | . . . . . . 6 5 . . Ballistic Gun 6 | . 28 21 7 . . . . . . Naked Turns 152 | . . . . . . . 25 27 100 Heaviest Build 42 | 12 12 18 18 23 41 42 22 . 1 Greatest Support 48 | 20 20 30 30 44 44 44 27 3 48 Greatest Overweight (x) 5 | . . . 3 3 . 1 5 . . Average Overweight (x) . | . . . . . . . . . . Largest Inventory Capacity 8 | 6 6 6 6 8 6 6 6 4 4 Average Capacity 5 | 6 6 6 6 6 6 6 5 4 4 Most Carried 6 | 6 6 6 6 6 6 6 6 4 4 Average Carried 5 | 5 4 5 4 5 5 5 5 4 3 Final Capacity 6 | 6 6 6 6 6 6 6 4 4 4 Final Carried 6 | 4 6 6 4 6 6 5 4 4 4 Class Distribution -------------------- 57% | Mutant 24% | Sprinter 9% | Scavenger-Mutant 7% | Hacker-Sprinter Dominant Class ---------------- Mutant | -10/Materials Mutant | -9/Materials Scavenger-Mutant | -9/Storage Sprinter | -8/Materials Mutant | -7/Factory Sprinter | -6/Factory Mutant | -6/Lower Caves Mutant | -6/Lower Caves Mutant | -5/Factory Resources | -11 -10 -9 -9 -8 -7 -6 -6 -6 -5 ----------- Run | Scr Mat Mat Sto Mat Fac Fac Low Low Fac Matter Collected 953 | 200 48 148 73 130 146 . 131 . 77 Remotely . | . . . . . . . . . . Salvage Created 453 | . 138 157 106 13 39 . . . . Parts 33 | . 10 11 9 1 2 . . . . Haulers Intercepted . | . . . . . . . . . . Recyclers Shooed . | . . . . . . . . . . Parts Field Recycled . | . . . . . . . . . . Retrieved Matter . | . . . . . . . . . . Parts Self-Destructed . | . . . . . . . . . . Prevented . | . . . . . . . . . . Kills | -11 -10 -9 -9 -8 -7 -6 -6 -6 -5 ------- Run | Scr Mat Mat Sto Mat Fac Fac Low Low Fac Combat Hostiles Destroyed 13 | . 3 3 4 2 1 . . . . Guns 10 | . 3 3 4 . . . . . . Cannons 3 | . . . . 2 1 . . . . Classes Destroyed 4 | . 3 1 . . . . . . . Recycler 1 | . 1 . . . . . . . . Swarmer 7 | . 2 . 3 2 . . . . . Grunt 1 | . 1 . . . . . . . . Sentry 5 | . . 3 1 . 1 . . . . Best Kill Streak 4 | . 4 1 4 2 1 . . . . Combat Bots Only 4 | . 3 1 4 2 1 . . . . Max Kills in Single Turn 1 | . 1 1 1 1 1 . . . . Gunslinging . | . . . . . . . . . . Exploded . | . . . . . . . . . . Melee . | . . . . . . . . . . Uniques/NPCs Destroyed . | . . . . . . . . . . Combat | -11 -10 -9 -9 -8 -7 -6 -6 -6 -5 -------- Run | Scr Mat Mat Sto Mat Fac Fac Low Low Fac Damage Taken 4637 | . 157 262 943 238 196 196 1229 . 1416 Core 2184 | . 16 28 249 62 15 85 719 . 1010 Absorbed by Shields . | . . . . . . . . . . Core Remaining (%) 68 | 100 93 . 30 88 97 . . 5 . Volleys Fired 48 | . 7 19 13 6 3 . . . . Largest 2 | . 2 2 2 1 2 . . . . Hottest 124 | . 40 43 79 44 124 . . . . Shots Fired 84 | . 14 38 20 6 6 . . . . Gun 72 | . 14 38 20 . . . . . . Cannon 12 | . . . . 6 6 . . . . Launcher . | . . . . . . . . . . Special . | . . . . . . . . . . Kinetic 73 | . 14 38 12 6 3 . . . . Thermal 11 | . . . 8 . 3 . . . . Explosive . | . . . . . . . . . . Electromagnetic . | . . . . . . . . . . Robot Hit Streak 9 | . 3 8 6 4 9 . . . . Robot Miss Streak 3 | . 1 2 1 3 3 . . . . Penetration Max . | . . . . . . . . . . Secondary Targets 2 | . . . 2 . . . . . . Max Gunslinging Chain 1 | . . . 1 . . . . . . Shots Hit Robots 63 | . 7 29 16 6 5 . . . . Core Hits 29 | . 5 8 7 4 4 . . . 1 Critical Hits 1 | . . 1 . . . . . . . Critical Kills . | . . . . . . . . . . Critical Parts Destroyed 1 | . . 1 . . . . . . . Melee Attacks . | . . . . . . . . . . Impact . | . . . . . . . . . . Slashing . | . . . . . . . . . . Piercing . | . . . . . . . . . . Sneak Attacks . | . . . . . . . . . . Combat Hostiles . | . . . . . . . . . . Follow-up Attacks . | . . . . . . . . . . Damage Inflicted 914 | . 96 396 191 56 171 1 . . 3 Guns 683 | . 96 396 191 . . . . . . Cannons 227 | . . . . 56 171 . . . . Explosions . | . . . . . . . . . . Melee . | . . . . . . . . . . Ramming 4 | . . . . . . 1 . . 3 Kinetic 766 | . 96 396 120 56 98 . . . . Thermal 144 | . . . 71 . 73 . . . . Explosive . | . . . . . . . . . . Electromagnetic . | . . . . . . . . . . Impact . | . . . . . . . . . . Slashing . | . . . . . . . . . . Piercing . | . . . . . . . . . . Highest Corruption 4 | . 1 . . 4 . . . . 2 Average Corruption 1 | . 1 . . 4 . . . . 1 Corruption Purged . | . . . . . . . . . . Effects 3 | . . . . 3 . . . . . Message Errors 2 | . . . . 2 . . . . . Data Loss (minor) 1 | . . . . 1 . . . . . Overload Shots . | . . . . . . . . . . Overflow Damage . | . . . . . . . . . . Projectiles . | . . . . . . . . . . Explosions . | . . . . . . . . . . Melee . | . . . . . . . . . . Knockbacks 3 | . . . . 2 . . . . 1 Impact 1 | . . . . . . . . . 1 Kinetic 2 | . . . . 2 . . . . . Secondary . | . . . . . . . . . . Self-Inflicted Damage 1 | . . . . . . . . . 1 Shots . | . . . . . . . . . . Rammed 4 | . . 1 . . . 1 . . 2 Targets Rammed 4 | . . 1 . . . 1 . . 2 Kicked . | . . . . . . . . . . Crushed . | . . . . . . . . . . Highest Temperature 256 | . 6 . 22 . 256 172 16 . . Average Temperature 67 | . 6 . 9 . 113 58 16 . . Received Heat Transfer 1068 | . 12 120 231 72 36 63 237 . 297 Effects 2 | . . . . . 2 . . . . Energy Bleed 2 | . . . . . 2 . . . . Siege Activations . | . . . . . . . . . . Robots Corrupted . | . . . . . . . . . . Combat Hostiles . | . . . . . . . . . . Parts Fried . | . . . . . . . . . . Impact Corruptions . | . . . . . . . . . . Robots Melted . | . . . . . . . . . . Combat Hostiles . | . . . . . . . . . . Parts Melted 1 | . . . . . 1 . . . . Heat Transferred 335 | . . . 185 . 150 . . . . Parts Sabotaged . | . . . . . . . . . . Parts Stolen . | . . . . . . . . . . Parts Stripped . | . . . . . . . . . . Power Chain Reactions . | . . . . . . . . . . Missiles Intercepted . | . . . . . . . . . . Alert | -11 -10 -9 -9 -8 -7 -6 -6 -6 -5 ------- Run | Scr Mat Mat Sto Mat Fac Fac Low Low Fac Peak Influence 205 | . 100 166 154 142 134 205 . . 125 Initial 69 | . . 42 69 52 59 65 . . . Average 90 | . 18 92 104 97 85 121 . . 83 Maximum Alert Level 1 | . . . . . . 1 . . . Low Security (%) 96 | 100 100 100 100 100 100 84 . . 100 Level 1 3 | . . . . . . 15 . . . Level 2 . | . . . . . . . . . . Level 3 . | . . . . . . . . . . Level 4 . | . . . . . . . . . . Level 5 . | . . . . . . . . . . High Security . | . . . . . . . . . . Max Security . | . . . . . . . . . . Squads Dispatched 8 | . 1 1 1 1 . 2 . . 2 Investigation 2 | . . . . . . 2 . . . Extermination . | . . . . . . . . . . Reinforcement 6 | . 1 1 1 1 . . . . 2 Assault . | . . . . . . . . . . Garrison . | . . . . . . . . . . Intercept . | . . . . . . . . . . Construction Impeded 1 | . . . . . . . . . 1 Haulers Reinforced . | . . . . . . . . . . Stealth | -11 -10 -9 -9 -8 -7 -6 -6 -6 -5 --------- Run | Scr Mat Mat Sto Mat Fac Fac Low Low Fac Distress Signals 3 | . . . . 3 . . . . . Communications Jammed . | . . . . . . . . . . Distress Signals . | . . . . . . . . . . Times Spotted 115 | . 6 6 12 15 4 13 24 . 35 Peak Tracking Total 18 | . 4 4 6 9 3 8 18 . 13 Tactical Retreats 18 | . . 1 1 2 . 3 4 . 7 Traps | -11 -10 -9 -9 -8 -7 -6 -6 -6 -5 ------- Run | Scr Mat Mat Sto Mat Fac Fac Low Low Fac Traps Triggered 3 | . 1 . . . 1 . . . 1 Indirectly . | . . . . . . . . . . Trap Hack Attempts . | . . . . . . . . . . Triggered . | . . . . . . . . . . Disarmed . | . . . . . . . . . . Reprogrammed . | . . . . . . . . . . Reused . | . . . . . . . . . . Traps Extracted . | . . . . . . . . . . Installed . | . . . . . . . . . . Triggered 1 | . . . . . . . 1 . . Machines | -11 -10 -9 -9 -8 -7 -6 -6 -6 -5 ---------- Run | Scr Mat Mat Sto Mat Fac Fac Low Low Fac Machines Disabled . | . . . . . . . . . . Max in Single Turn . | . . . . . . . . . . Machines Sabotaged . | . . . . . . . . . . Garrisons Compromised . | . . . . . . . . . . Overloaded Fab Kills . | . . . . . . . . . . Fab Network Shutdowns . | . . . . . . . . . . Hacking | -11 -10 -9 -9 -8 -7 -6 -6 -6 -5 --------- Run | Scr Mat Mat Sto Mat Fac Fac Low Low Fac Machines Accessed 11 | . . 2 1 1 . 5 . . 2 Terminals 8 | . . 2 1 1 . 2 . . 2 Fabricators 1 | . . . . . . 1 . . . Repair Stations 1 | . . . . . . 1 . . . Recycling Units 1 | . . . . . . 1 . . . Scanalyzers . | . . . . . . . . . . Garrison Access . | . . . . . . . . . . Total Hacks 21 | . . 5 1 1 . 12 . . 2 Successful 14 | . . 3 1 1 . 7 . . 2 Failed 7 | . . 2 . . . 5 . . . Catastrophic 1 | . . . . . . 1 . . . Database Lockouts . | . . . . . . . . . . Manual . | . . . . . . . . . . Terminals 14 | . . 5 1 1 . 5 . . 2 Fabricators 1 | . . . . . . 1 . . . Repair Stations 3 | . . . . . . 3 . . . Recycling Units 3 | . . . . . . 3 . . . Scanalyzers . | . . . . . . . . . . Garrison Access . | . . . . . . . . . . Terminal Hacks 9 | . . 3 1 1 . 2 . . 2 Open Door 1 | . . . 1 . . . . . . Locate Traps 1 | . . 1 . . . . . . . Dispatch Records 1 | . . . . 1 . . . . . Surveillance Status 1 | . . . . . . 1 . . . Investigation Status 1 | . . . . . . 1 . . . Recall Extermination 1 | . . . . . . . . . 1 Recall Reinforcements 1 | . . . . . . . . . 1 Hauler Manifests 2 | . . 2 . . . . . . . Fabricator Hacks 1 | . . . . . . 1 . . . Network Status 1 | . . . . . . 1 . . . Repair Station Hacks 2 | . . . . . . 2 . . . Scan Component 1 | . . . . . . 1 . . . Repair 1 | . . . . . . 1 . . . Recycling Unit Hacks 2 | . . . . . . 2 . . . Recycle Component 1 | . . . . . . 1 . . . Process 1 | . . . . . . 1 . . . Scanalyzer . | . . . . . . . . . . Garrison Access Hacks . | . . . . . . . . . . Unauthorized Hacks . | . . . . . . . . . . Terminals . | . . . . . . . . . . Fabricators . | . . . . . . . . . . Repair Stations . | . . . . . . . . . . Recycling Units . | . . . . . . . . . . Scanalyzers . | . . . . . . . . . . Garrison Access . | . . . . . . . . . . Data Cores Recovered . | . . . . . . . . . . Used . | . . . . . . . . . . Hacking Detections 7 | . . 1 . 1 . 4 . . 1 Full Trace Events 2 | . . . . . . 2 . . . Feedback Events . | . . . . . . . . . . Feedback Blocked . | . . . . . . . . . . Robot Schematics Acquired . | . . . . . . . . . . Robots Built . | . . . . . . . . . . Matter . | . . . . . . . . . . Time . | . . . . . . . . . . Total Robot Build Rating . | . . . . . . . . . . Part Schematics Acquired . | . . . . . . . . . . Parts Built . | . . . . . . . . . . Matter . | . . . . . . . . . . Time . | . . . . . . . . . . Total Part Build Rating . | . . . . . . . . . . Parts Repaired 1 | . . . . . . 1 . . . Time 19 | . . . . . . 19 . . . Parts Recycled 1 | . . . . . . 1 . . . Recycled Matter 281 | . . . . . . 281 . . . Retrieved Matter . | . . . . . . . . . . Retrieved Components . | . . . . . . . . . . Parts Scanalyzed . | . . . . . . . . . . Part Schematics Acquired . | . . . . . . . . . . Parts Damaged . | . . . . . . . . . . Bothacking | -11 -10 -9 -9 -8 -7 -6 -6 -6 -5 ------------ Run | Scr Mat Mat Sto Mat Fac Fac Low Low Fac Used RIF Installer . | . . . . . . . . . . Robots Hacked . | . . . . . . . . . . Non-combat . | . . . . . . . . . . Combat . | . . . . . . . . . . Robot Hacks Applied . | . . . . . . . . . . Relay Couplers Released . | . . . . . . . . . . Robots Rewired . | . . . . . . . . . . Allies Hacked . | . . . . . . . . . . Hacks Repelled . | . . . . . . . . . . Allies | -11 -10 -9 -9 -8 -7 -6 -6 -6 -5 -------- Run | Scr Mat Mat Sto Mat Fac Fac Low Low Fac Total Allies 1 | . . . . . . . 1 . . Largest Group 1 | . . . . . . . 1 . . Highest-Rated Group 125 | . . . . . . . 125 . . Highest-Rated Ally 125 | . . . . . . . 125 . . Total Orders . | . . . . . . . . . . Ally Attacks . | . . . . . . . . . . Total Damage . | . . . . . . . . . . Kills . | . . . . . . . . . . Allies Corrupted . | . . . . . . . . . . Allies Melted . | . . . . . . . . . . Intel | -11 -10 -9 -9 -8 -7 -6 -6 -6 -5 ------- Run | Scr Mat Mat Sto Mat Fac Fac Low Low Fac Robot Analysis Total . | . . . . . . . . . . Derelict Logs Recovered 1 | . . . . . . . 1 . . Drone Launches . | . . . . . . . . . . Drone Recoveries . | . . . . . . . . . . Exploration | -11 -10 -9 -9 -8 -7 -6 -6 -6 -5 ------------- Run | Scr Mat Mat Sto Mat Fac Fac Low Low Fac Turns Passed 1710 | 4 184 232 144 196 114 401 105 27 303 Spaces Moved 2914 | 3 133 137 134 358 248 1155 135 53 558 Core 441 | . . . 4 1 . . 95 53 288 Treads . | . . . . . . . . . . Legs 329 | 3 133 137 50 . . . . . 6 Wheels 50 | . . . . . . . . . 50 Hover 310 | . . . . 34 248 28 . . . Flight 1784 | . . . 80 323 . 1127 40 . 214 Fastest Speed 28 | 120 120 120 31 30 38 28 31 50 40 Average Speed 48 | 120 120 120 71 40 38 30 75 50 50 Slowest Speed 440 | 120 120 120 200 200 38 114 440 50 120 Overloaded Moves . | . . . . . . . . . . Propulsion Burnouts . | . . . . . . . . . . Robots Hopped 6 | . . . . . . 6 . . . Cave-ins Triggered . | . . . . . . . . . . Exploration Rate (%) 23 | 2 31 14 33 44 8 34 30 13 25 Regions Visited 9 Branch Regions 3 Pre-discovered Areas . | . . . . . . . . . . Known Exits Taken . | . . . . . . . . . . Unknown Exits Taken 9 | 1 1 1 1 1 1 1 1 1 . Scrap Searched 2 | . . . . . . . 2 . . Spaces Dug . | . . . . . . . . . . Terrain Destroyed . | . . . . . . . . . . Melee . | . . . . . . . . . . Projectile . | . . . . . . . . . . AOE . | . . . . . . . . . . Terrain Rammed . | . . . . . . . . . . Walls Destroyed . | . . . . . . . . . . Machines Disabled . | . . . . . . . . . . Actions | -11 -10 -9 -9 -8 -7 -6 -6 -6 -5 --------- Run | Scr Mat Mat Sto Mat Fac Fac Low Low Fac Total 3105 | 4 144 170 160 402 259 1199 137 52 578 Wait 15 | . . . 2 1 . 12 . . . Move 2894 | 2 132 136 133 357 247 1143 134 52 558 Hop 6 | . . . . . . 6 . . . Pick Up 8 | . 1 2 1 1 1 2 . . . Fast Attach 50 | . 1 1 6 18 3 10 2 . 9 Attach 16 | . . 1 3 1 3 5 . . 3 Detach 16 | . . . . 5 1 6 1 . 3 Swap 10 | . 2 4 1 . 1 2 . . . Drop 39 | 2 1 6 1 13 . 13 . . 3 Fire 48 | . 7 19 13 6 3 . . . . Melee . | . . . . . . . . . . Ram 2 | . . . . . . . . . 2 Kick 1 | . . 1 . . . . . . . Crush . | . . . . . . . . . . Escape Stasis . | . . . . . . . . . . Rewire . | . . . . . . . . . . Trap . | . . . . . . . . . . Miscellaneous . | . . . . . . . . . . Route ------- -11/Scrapyard -10/Materials (discovered 2 exits: *Mat / [*Min]) -9/Materials -9/Storage -8/Materials -7/Factory -6/Factory -6/Lower Caves -6/Lower Caves -5/Factory History --------- Turn | Location | Event 1 | -11/Scrapyard | Discovered new exit (range 1) 5 | -11/Scrapyard | Entered Materials 11 | -10/Materials | Discovered new exit (range 15) 118 | -10/Materials | Discovered new exit (range 15) 189 | -10/Materials | Entered another Materials area 189 | -9/Materials | Evolved 2 slots: Propulsion x2 305 | -9/Materials | Build established: Mutant 334 | -9/Materials | Discovered new exit (range 14) 421 | -9/Materials | Entered Storage 528 | -9/Storage | Core integrity fell below 50% 558 | -9/Storage | Discovered new exit (range 15) 565 | -9/Storage | Entered Materials 565 | -8/Materials | Evolved 2 slots: Utility x2 612 | -8/Materials | Lost 13 parts (2p5n1u5w) 754 | -8/Materials | Discovered new exit (range 16) 761 | -8/Materials | Entered Factory 761 | -7/Factory | Evolved 2 slots: Power x1, Propulsion x1 871 | -7/Factory | Discovered new exit (range 11) 875 | -7/Factory | Entered another Factory area 875 | -6/Factory | Evolved 2 slots: Utility x2 1064 | -6/Factory | Repaired Adv. Sensor Array 1152 | -6/Factory | Build established: Sprinter 1272 | -6/Factory | Discovered new exit (range 4) 1276 | -6/Factory | Entered Lower Caves 1313 | -6/Lower Caves | Learned Factory stockpile data 1325 | -6/Lower Caves | Core integrity fell below 50% 1374 | -6/Lower Caves | Discovered new exit (range 11) 1377 | -6/Lower Caves | Core integrity fell below 20% 1381 | -6/Lower Caves | Entered another Lower Caves area 1387 | -6/Lower Caves | Lost 13 parts (2p5n6u) 1400 | -6/Lower Caves | Discovered new exit (range 15) 1408 | -6/Lower Caves | Entered Factory 1408 | -5/Factory | Evolved 2 slots: Propulsion x1, Utility x1 1597 | -5/Factory | Core integrity fell below 50% 1603 | -5/Factory | Build established: Mutant 1689 | -5/Factory | Core integrity fell below 20% 1711 | -5/Factory | Destroyed by S-27 Virus with Autogun Last Messages --------------- 01627_ Dropped Arm. Leg. 01629_ Acquired Arm. Wheel. 01650_ Penetrated by Slug. 01655_ P-70 Sage resets Y-64 Sentinel, system corruption cleaned. 01655_ Triggered Segregator Trap. 01655_ Arcs of energy rise from the floor. 01655_ Arm. Wheel blown off. 01657_ Acquired Arm. Wheel. 01663_ Penetrated by Slug. 01665_ Slammed into U-05 Engineer. 01665_ Destabilizing: Core damaged (-10). 01665_ ALERT: Construction progress impeded, dispatching reinforcements to local area. 01666_ Penetrated by Slug. 01679_ Arm. Wheel destroyed. 01680_ Penetrated by Slug. 01682_ Arm. Wheel destroyed. 01685_ Dropped Arm. Wheel. 01688_ U-05 Engineer lays Concrete. 01702_ K-01 Serf collects debris. Map ----- +----------------------------------------------------+ | ?????????????????????????????????????????????# | | ?????????????????????????????????????????????# | | ?????????????????????????????????????????????#" "" | | ?????????????????????????????????????????????#T "" | | ?????????????????????????????????????????????#" "" | | ?????????????????????????????????????????????# | | ?????????????????????????????????????????????# | | ?????????????????????????????????????????????# | | ?????????????????????????????????????????##### | | ????????????????????????????????????? | | ???????????????????????????????????????######### | | ???????????????????????????????????????????????# | | ???????????????????????????????????????????????# | | ???????????????????????????????????????????????# | | ???????????????????????????????????????????????# | | ???????????????????????????????????????????????# | | ???????????????????????????????????????????????# | | ?????? ###+###????????????????????????????????# | | ????? #???????????????????????????????### | | ????? #?????????????????????????????????? | | ?????? #?????????????????????????????????? | | ??????? #?????????????????????????????????? | | ???????? #?????????????????????????????????? | | ?????????# #?????????????????????????????????? | | ?????????# ###+#################?????????????? | | ?????????# @ ????????? | | ?????????# ????????? | | ?????????# Y????????? | | ?????????# ?????????? | | ?????????# s ?????????? | | ?????????# ###+#############+### ??????????? | | ########?# # ?????????????????u??????????? | | #?# # ""??????????????????????????? | | #?# # """ ????????????????????????? | | #?# # """ #???????????????????????? | | #?# #"" ????????????????????????? | | #?# #"Y #???????????????????????? | | #?# #"" #???????????????????????? | | #?# # #???????????????????????? | | #?# #?#########???????????????????????? | | ### #?????????????????????????????????? | | + #?????????????????????????????????? | | # #?????????????????????????????????? | | ! + #?????????????????????????????????? | | ############+###?????????????????????????????????? | | ##???????????????????????????????????????????????? | | #???????????????????????????????????????????????? | | #???????????????????????????????????????????????? | | #???????????????????????????????????????????????? | | #??###??????????????????????????????????????????? | +----------------------------------------------------+ Best States ------------- Heat Dissipation 40 Energy Generation 31 Energy Capacity 450 Matter Stores 300 Matter Capacity 300 Sight Range 16 Robot Scan Range 16 Terrain Scan Density 10 Jamming Range 12 Power Amplification 20 Armor Coverage 150 Evasion (%) 64 Targeting Accuracy 6 Offensive Hacking 24 Item Schematics ----------------- None Robot Schematics ------------------ None Fabricated ------------ Nothing Alien Tech Used ----------------- None Achievements -------------- GoHome() Challenges ------------ None Game ------ Seed CloakDimensionalBlade Manual? 0 Play Time 00:49:14 Cumulative 23.4 hours Start 2020.09.25 @ 22:52:46 End 2020.09.25 @ 23:48:07 Sessions 1 Manual Loads 0 Difficulty Rogue Special Mode None Game No. 45 Rogue 45 Adventurer 0 Explorer 0 Win Type - Total 0 Types 0/0/0/0/0/0/0/0/0 Lore% 21 Gallery% 32 Achievement% 24 Wizard Run 0 Options --------- ASCII 1 Keyboard 1 Movement Vi Keybinds 0 Fullscreen 2 Font 24/Proggy Map View 76x50 Tactical HUD 1 Map Filters SATURATION(70) Filters SATURATION(65)|SHIFT_HUE(14) Steam 1 RUN: cd66cc8f-da96-4829-a522-8bf166dfe411